fUST/lending_fUST_20250605
["ID","MTS","AMOUNT","RATE_DAILY","PERIOD"]
[364550984,1749138646433,-670.38,0.00019452,2]
[364550985,1749138646443,-500.0,0.00019507,2]
[364550986,1749138646453,-500.0,0.00019534,2]
[364550987,1749138646462,-519.70768548,0.00019562,2]
[364550988,1749138646471,-522.48,0.00019725,2]
[364550989,1749138646480,-440.0,0.00019726,2]
[364550990,1749138646490,-440.0,0.00019726,2]
[364550991,1749138646501,-969.17,0.00019726,2]
[364550992,1749138646511,-430.0,0.00019726,2]
[364550993,1749138646520,-440.0,0.00019726,2]
[364550994,1749138646530,-613.16,0.00019726,2]
[364550995,1749138646540,-440.0,0.00019726,2]
[364550996,1749138646550,-924.01,0.00019726,2]
[364550997,1749138646559,-1379.01,0.00019726,2]
[364550998,1749138646568,-440.0,0.00019726,2]
[364550999,1749138646578,-440.0,0.00019726,2]
[364551000,1749138646587,-440.0,0.00019726,2]
[364551001,1749138646596,-462.31,0.00019726,2]
[364551002,1749138646605,-279.47,0.00019726,2]
[364551003,1749138646614,-440.0,0.00019726,2]
[364551004,1749138646623,-440.0,0.00019726,2]
[364551005,1749138646632,-440.0,0.00019726,2]
[364551006,1749138646641,-440.0,0.00019726,2]
[364551007,1749138646650,-420.0,0.00019726,2]
[364551008,1749138646659,-440.0,0.00019726,2]
[364551009,1749138646669,-432.44,0.00019726,2]
[364551010,1749138646678,-507.73,0.00019726,2]
[364551011,1749138646687,-154.09231252,0.00019726,2]
[364551012,1749138646696,-440.0,0.00019726,2]
[364551013,1749138646706,-440.0,0.00019726,2]
[364551014,1749138646715,-440.0,0.00019726,2]
[364551015,1749138646723,-420.0,0.00019726,2]
[364551016,1749138646733,-440.0,0.00019726,2]
[364551017,1749138646743,-440.0,0.00019726,2]
[364551018,1749138646751,-440.0,0.00019726,2]
[364551019,1749138646761,-21292.08,0.00019726,2]
[364551020,1749138646770,-440.0,0.00019726,2]
[364551021,1749138646779,-440.0,0.00019726,2]
[364551022,1749138646788,-440.0,0.00019726,2]
[364551023,1749138646797,-564.03042737,0.00019726,2]
[364551024,1749138646806,-708.66,0.00019726,2]
[364551025,1749138646817,-522.17,0.00019726,2]
[364551026,1749138646826,-440.0,0.00019726,2]
[364551027,1749138646835,-440.0,0.00019726,2]
[364551028,1749138646844,-440.0,0.00019726,2]
[364551029,1749138646853,-440.0,0.00019726,2]
[364551030,1749138646862,-440.0,0.00019726,2]
[364551031,1749138646872,-440.0,0.00019726,2]
[364551032,1749138646881,-861.35,0.00019726,2]
[364551033,1749138646890,-670.38,0.00019726,2]
[364551034,1749138646899,-500.0,0.00019753,2]
[364551035,1749138646908,-500.0,0.00019753,2]
[364551036,1749138646917,-500.0,0.00019753,2]
[364551037,1749138646926,-500.0,0.00019753,2]
[364551038,1749138646935,-151.0,0.00019753,2]
[364551039,1749138646944,-152.52492943,0.00019753,2]
[364551040,1749138646953,-152.07817798,0.00019753,2]
[364551041,1749138646963,-151.0,0.00019753,2]
[364551042,1749138646972,-500.0,0.0001978,2]
[364551043,1749138646981,-574.737208,0.0001978,2]
[364551044,1749138646990,-500.83773021,0.0001978,2]
[364551045,1749138646999,-500.0,0.0001978,2]
[364551046,1749138647008,-151.0,0.0001978,2]
[364551047,1749138647018,-151.0,0.0001978,2]
[364551048,1749138647028,-315.39888629,0.00019808,2]
[364551049,1749138647038,-500.0,0.00019808,2]
[364551050,1749138647047,-500.0,0.00019808,2]
[364551051,1749138647056,-201.36615727,0.00019808,2]
[364551052,1749138647066,-151.0,0.00019808,2]
[364551053,1749138647075,-229.48950782,0.00019835,2]
[364551054,1749138647084,-160.0,0.00019835,2]
[364551055,1749138647093,-842.5625,0.00019835,2]
[364551056,1749138647102,-423.7637613,0.00019835,2]
[364551057,1749138647111,-160.0,0.00019835,2]
[364551058,1749138647120,-160.0,0.00019835,2]
[364551059,1749138647130,-500.0,0.00019835,2]
[364551060,1749138647139,-500.0,0.00019835,2]
[364551061,1749138647148,-151.0,0.00019835,2]
[364551062,1749138647157,-500.0,0.00019863,2]
[364551063,1749138647167,-500.0,0.00019863,2]
[364551064,1749138647176,-151.0,0.00019863,2]
[364551065,1749138647186,-328.981,0.00019886,2]
[364551066,1749138647196,-500.0,0.0001989,2]
[364551067,1749138647205,-500.0,0.0001989,2]
[364551068,1749138647214,-245.0,0.0001989,2]
[364551069,1749138647223,-736.72165374,0.000199,2]
[364551070,1749138647233,-500.0,0.00019917,2]
[364551071,1749138647242,-500.0,0.00019917,2]
[364551072,1749138647252,-500.0,0.00019945,2]
[364551073,1749138647261,-500.0,0.00019945,2]
[364551074,1749138647270,-500.0,0.00019972,2]
[364551075,1749138647280,-500.0,0.00019972,2]
[364551076,1749138647290,-277.75440353,0.0002,2]
[364551077,1749138647299,-500.0,0.0002,2]
[364551078,1749138647308,-440.0,0.0002,2]
[364551079,1749138647318,-521.91,0.0002,2]
[364551080,1749138647328,-969.17,0.0002,2]
[364551081,1749138647337,-440.0,0.0002,2]
[364551082,1749138647347,-613.16,0.0002,2]
[364551083,1749138647356,-440.0,0.0002,2]
[364551084,1749138647365,-924.01,0.0002,2]
[364551085,1749138647375,-1379.01,0.0002,2]
[364551086,1749138647385,-440.0,0.0002,2]
[364551087,1749138647394,-440.0,0.0002,2]
[364551088,1749138647403,-440.0,0.0002,2]
[364551089,1749138647413,-440.0,0.0002,2]
[364551090,1749138647422,-440.0,0.0002,2]
[364551091,1749138647432,-440.0,0.0002,2]
[364551092,1749138647442,-523.79014939,0.0002,2]
[364551093,1749138647452,-440.0,0.0002,2]
[364551094,1749138647461,-440.0,0.0002,2]
[364551095,1749138647471,-201.44,0.0002,2]
[364551096,1749138647480,-253.72,0.0002,2]
[364551097,1749138647490,-569.78,0.0002,2]
[364551098,1749138647500,-440.0,0.0002,2]
[364551099,1749138647512,-440.0,0.0002,2]
[364551100,1749138647522,-21292.08,0.0002,2]
[364551101,1749138647531,-440.0,0.0002,2]
[364551102,1749138647541,-440.0,0.0002,2]
[364551103,1749138647551,-440.0,0.0002,2]
[364551104,1749138647561,-708.66,0.0002,2]
[364551105,1749138647571,-522.17,0.0002,2]
[364551106,1749138647581,-440.0,0.0002,2]
[364551107,1749138647591,-440.0,0.0002,2]
[364551108,1749138647600,-440.0,0.0002,2]
[364551109,1749138647610,-440.0,0.0002,2]
[364551110,1749138647619,-440.0,0.0002,2]
[364551111,1749138647628,-298.03,0.0002,2]
[364551112,1749138647637,-861.35,0.0002,2]
[364551113,1749138647647,-670.38,0.0002,2]
[364551114,1749138647656,-500.0,0.00020027,2]
[364551115,1749138647666,-500.0,0.00020054,2]
[364551116,1749138647676,-736.7216536,0.00020072,2]
[364551117,1749138647685,-500.0,0.00020082,2]
[364551118,1749138647695,-500.0,0.00020109,2]
[364551119,1749138647706,-500.0,0.00020137,2]
[364551120,1749138647715,-736.7216536,0.00020245,2]
[364551121,1749138647724,-500.0,0.00020272,2]
[364551122,1749138647735,-500.0,0.00020272,2]
[364551123,1749138647745,-351.75180637,0.00020272,2]
[364551124,1749138647755,-500.0,0.00020272,2]
[364551125,1749138647766,-500.0,0.00020272,2]
[364551126,1749138647776,-500.0,0.00020272,2]
[364551127,1749138647785,-500.0,0.00020272,2]
[364551128,1749138647795,-500.0,0.00020272,2]
[364551129,1749138647805,-500.0,0.00020272,2]
[364551130,1749138647814,-500.0,0.00020272,2]
[364551131,1749138647824,-500.0,0.00020272,2]
[364551132,1749138647833,-500.0,0.00020272,2]
[364551133,1749138647942,-205.049756,0.00020272,2]
[364551134,1749138647953,-449.05844894,0.00020272,2]
[364551135,1749138647963,-500.0,0.00020272,2]
[364551136,1749138647972,-500.0,0.00020272,2]
[364551137,1749138647982,-500.0,0.00020272,2]
[364551138,1749138647991,-368.13852271,0.00020272,2]
[364551139,1749138648001,-214.52707427,0.00020272,2]
[364551140,1749138648010,-500.0,0.00020272,2]
[364551141,1749138648021,-500.0,0.00020272,2]
[364551142,1749138648031,-279.53766781,0.00020272,2]
[364551143,1749138648041,-500.0,0.00020272,2]
[364551144,1749138648051,-500.0,0.00020272,2]
[364551145,1749138648060,-500.0,0.00020272,2]
[364551146,1749138648069,-500.0,0.00020272,2]
[364551147,1749138648079,-500.0,0.00020272,2]
[364551148,1749138648088,-500.0,0.00020272,2]
[364551149,1749138648098,-500.0,0.00020272,2]
[364551150,1749138648107,-500.0,0.00020272,2]
[364551151,1749138648116,-500.0,0.00020272,2]
[364551152,1749138648126,-500.0,0.00020272,2]
[364551153,1749138648135,-500.0,0.00020272,2]
[364551154,1749138648145,-500.0,0.00020272,2]
[364551155,1749138648154,-500.0,0.00020272,2]
[364551156,1749138648163,-500.0,0.00020272,2]
[364551157,1749138648173,-500.0,0.00020272,2]
[364551158,1749138648182,-500.0,0.00020272,2]
[364551159,1749138648191,-500.0,0.00020272,2]
[364551160,1749138648201,-500.0,0.00020272,2]
[364551161,1749138648210,-500.0,0.00020272,2]
[364551162,1749138648220,-500.0,0.00020272,2]
[364551163,1749138648229,-500.0,0.00020272,2]
[364551164,1749138648239,-500.0,0.00020272,2]
[364551165,1749138648249,-500.0,0.00020272,2]
[364551166,1749138648259,-500.0,0.00020272,2]
[364551167,1749138648270,-262.30496011,0.00020272,2]
[364551168,1749138648280,-500.0,0.00020272,2]
[364551169,1749138648290,-500.0,0.00020272,2]
[364551170,1749138648300,-500.0,0.00020272,2]
[364551171,1749138648310,-500.0,0.00020272,2]
[364551172,1749138648319,-500.0,0.00020272,2]
[364551173,1749138648329,-500.0,0.00020272,2]
[364551174,1749138648339,-500.0,0.00020272,2]
[364551175,1749138648349,-400.6731036,0.00020272,2]
[364551176,1749138648359,-500.0,0.00020272,2]
[364551177,1749138648369,-500.0,0.00020272,2]
[364551178,1749138648378,-500.0,0.00020272,2]
[364551179,1749138648387,-500.0,0.00020272,2]
[364551180,1749138648397,-500.0,0.00020272,2]
[364551181,1749138648407,-500.0,0.00020272,2]
[364551182,1749138648416,-500.0,0.00020272,2]
[364551183,1749138648427,-500.0,0.00020272,2]
[364551184,1749138648436,-500.0,0.00020272,2]
[364551185,1749138648446,-500.0,0.00020272,2]
[364551186,1749138648455,-500.0,0.00020272,2]
[364551187,1749138648464,-500.0,0.00020272,2]
[364551188,1749138648474,-500.0,0.00020272,2]
[364551189,1749138648483,-500.0,0.00020272,2]
[364551190,1749138648492,-500.0,0.00020272,2]
[364551191,1749138648505,-500.0,0.00020272,2]
[364551192,1749138648515,-500.0,0.00020272,2]
[364551193,1749138648524,-500.0,0.00020272,2]
[364551194,1749138648534,-500.0,0.00020272,2]
[364551195,1749138648543,-500.0,0.00020272,2]
[364551196,1749138648553,-500.0,0.00020272,2]
[364551197,1749138648563,-500.0,0.00020272,2]
[364551198,1749138648572,-500.0,0.00020272,2]
[364551199,1749138648582,-500.0,0.00020272,2]
[364551200,1749138648591,-500.0,0.00020272,2]
[364551201,1749138648601,-500.0,0.00020272,2]
[364551202,1749138648610,-500.0,0.00020272,2]
[364551203,1749138648619,-500.0,0.00020272,2]
[364551204,1749138648628,-500.0,0.00020272,2]
[364551205,1749138648637,-500.0,0.00020272,2]
[364551206,1749138648647,-500.0,0.00020272,2]
[364551207,1749138648655,-500.0,0.00020272,2]
[364551208,1749138648664,-500.0,0.00020272,2]
[364551209,1749138648674,-500.0,0.00020272,2]
[364551210,1749138648683,-275.75969084,0.00020272,2]
[364551211,1749138648692,-500.0,0.00020272,2]
[364551212,1749138648701,-500.0,0.00020272,2]
[364551213,1749138648710,-500.0,0.00020272,2]
[364551214,1749138648720,-500.0,0.00020272,2]
[364551215,1749138648730,-500.0,0.00020272,2]
[364551216,1749138648740,-500.0,0.00020272,2]
[364551217,1749138648749,-500.0,0.00020272,2]
[364551218,1749138648758,-500.0,0.00020272,2]
[364551219,1749138648768,-500.0,0.00020272,2]
[364551220,1749138648777,-500.0,0.00020272,2]
[364551221,1749138648786,-500.0,0.00020272,2]
[364551222,1749138648796,-500.0,0.00020272,2]
[364551223,1749138648805,-500.0,0.00020272,2]
[364551224,1749138648814,-500.0,0.00020272,2]
[364551225,1749138648823,-500.0,0.00020272,2]
[364551226,1749138648832,-500.0,0.00020272,2]
[364551227,1749138648842,-500.0,0.00020272,2]
[364551228,1749138648851,-500.0,0.00020272,2]
[364551229,1749138648860,-500.0,0.00020272,2]
[364551230,1749138648870,-500.0,0.00020272,2]
[364551231,1749138648879,-500.0,0.00020272,2]
[364551232,1749138648888,-969.17,0.00020273,2]
[364551233,1749138648897,-440.0,0.00020273,2]
[364551234,1749138648907,-613.16,0.00020273,2]
[364551235,1749138648917,-440.0,0.00020273,2]
[364551236,1749138648926,-924.01,0.00020273,2]
[364551237,1749138648935,-1379.01,0.00020273,2]
[364551238,1749138648944,-440.0,0.00020273,2]
[364551239,1749138648953,-440.0,0.00020273,2]
[364551240,1749138648962,-440.0,0.00020273,2]
[364551241,1749138648971,-440.0,0.00020273,2]
[364551242,1749138648979,-583.67,0.00020273,2]
[364551243,1749138648988,-440.0,0.00020273,2]
[364551244,1749138648997,-440.0,0.00020273,2]
[364551245,1749138649006,-440.0,0.00020273,2]
[364551246,1749138649015,-440.0,0.00020273,2]
[364551247,1749138649024,-167.26,0.00020273,2]
[364551248,1749138649033,-21292.08,0.00020273,2]
[364551249,1749138649042,-440.0,0.00020273,2]
[364551250,1749138649051,-440.0,0.00020273,2]
[364551251,1749138649061,-440.0,0.00020273,2]
[364551252,1749138649070,-708.66,0.00020273,2]
[364551253,1749138649080,-522.17,0.00020273,2]
[364551254,1749138649089,-440.0,0.00020273,2]
[364551255,1749138649099,-440.0,0.00020273,2]
[364551256,1749138649108,-440.0,0.00020273,2]
[364551257,1749138649116,-440.0,0.00020273,2]
[364551258,1749138649125,-440.0,0.00020273,2]
[364551259,1749138649135,-861.35,0.00020273,2]
[364551260,1749138649144,-670.38,0.00020273,2]
[364551261,1749138649153,-977.97,0.00020376,2]
[364551262,1749138649162,-736.7216536,0.00020417,3]
[364551263,1749138649171,-500.0,0.00020488,2]
[364551264,1749138649180,-500.0,0.00020547,2]
[364551265,1749138649189,-969.17,0.00020547,2]
[364551266,1749138649199,-400.0,0.00020547,2]
[364551267,1749138649208,-613.16,0.00020547,2]
[364551268,1749138649217,-440.0,0.00020547,2]
[364551269,1749138649226,-924.01,0.00020547,2]
[364551270,1749138649235,-1379.01,0.00020547,2]
[364551271,1749138649244,-440.0,0.00020547,2]
[364551272,1749138649253,-440.0,0.00020547,2]
[364551273,1749138649263,-440.0,0.00020547,2]
[364551274,1749138649272,-440.0,0.00020547,2]
[364551275,1749138649282,-440.0,0.00020547,2]
[364551276,1749138649291,-151.0,0.00020547,2]
[364551277,1749138649301,-440.0,0.00020547,2]
[364551278,1749138649311,-440.0,0.00020547,2]
[364551279,1749138649320,-151.0,0.00020547,2]
[364551280,1749138649330,-373.85486513,0.00020547,2]
[364551281,1749138649340,-151.0,0.00020547,2]
[364551282,1749138649350,-21292.08,0.00020547,2]
[364551283,1749138649359,-440.0,0.00020547,2]
[364551284,1749138649369,-440.0,0.00020547,2]
[364551285,1749138649379,-440.0,0.00020547,2]
[364551286,1749138649389,-708.66,0.00020547,2]
[364551287,1749138649399,-440.0,0.00020547,2]
[364551288,1749138649409,-522.17,0.00020547,2]
[364551289,1749138649418,-440.0,0.00020547,2]
[364551290,1749138649428,-371.87,0.00020547,2]
[364551291,1749138649438,-440.0,0.00020547,2]
[364551292,1749138649448,-495.79,0.00020547,2]
[364551293,1749138649458,-861.35,0.00020547,2]
[364551294,1749138649468,-670.38,0.00020547,2]
[364551295,1749138649478,-164.941543,0.00020548,2]
[364551296,1749138649488,-736.7216536,0.0002059,3]
[364551297,1749138649498,-1144.91,0.000206,2]
[364551298,1749138649511,-24285.76,0.000206,2]
[364551299,1749138649522,-736.7216536,0.00020762,3]
[364551300,1749138649532,-969.17,0.00020821,2]
[364551301,1749138649543,-613.16,0.00020821,2]
[364551302,1749138649553,-440.0,0.00020821,2]
[364551303,1749138649563,-924.01,0.00020821,2]
[364551304,1749138649572,-1379.01,0.00020821,2]
[364551305,1749138649583,-440.0,0.00020821,2]
[364551306,1749138649593,-440.0,0.00020821,2]
[364551307,1749138649603,-440.0,0.00020821,2]
[364551308,1749138649612,-151.0,0.00020821,2]
[364551309,1749138649622,-440.0,0.00020821,2]
[364551310,1749138649632,-440.0,0.00020821,2]
[364551311,1749138649642,-151.0,0.00020821,2]
[364551312,1749138649651,-440.0,0.00020821,2]
[364551313,1749138649660,-173.35,0.00020821,2]
[364551314,1749138649669,-192.951775,0.00020821,2]
[364551315,1749138649679,-192.951775,0.00020821,2]
[364551316,1749138649689,-21292.08,0.00020821,2]
[364551317,1749138649698,-440.0,0.00020821,2]
[364551318,1749138649708,-440.0,0.00020821,2]
[364551319,1749138649718,-440.0,0.00020821,2]
[364551320,1749138649727,-708.66,0.00020821,2]
[364551321,1749138649737,-440.0,0.00020821,2]
[364551322,1749138649746,-522.17,0.00020821,2]
[364551323,1749138649756,-440.0,0.00020821,2]
[364551324,1749138649765,-440.0,0.00020821,2]
[364551325,1749138649775,-861.35,0.00020821,2]
[364551326,1749138649784,-670.38,0.00020821,2]
[364551327,1749138649794,-736.7216536,0.00020934,4]
[364551328,1749138649803,-969.17,0.00021095,2]
[364551329,1749138649813,-613.16,0.00021095,2]
[364551330,1749138649823,-440.0,0.00021095,2]
[364551331,1749138649832,-924.01,0.00021095,2]
[364551332,1749138649841,-1379.01,0.00021095,2]
[364551333,1749138649851,-440.0,0.00021095,2]
[364551334,1749138649860,-440.0,0.00021095,2]
[364551335,1749138649869,-440.0,0.00021095,2]
[364551336,1749138649879,-259.34414913,0.00021095,2]
[364551337,1749138649889,-440.0,0.00021095,2]
[364551338,1749138649899,-440.0,0.00021095,2]
[364551339,1749138649908,-21292.08,0.00021095,2]
[364551340,1749138649917,-440.0,0.00021095,2]
[364551341,1749138649928,-440.0,0.00021095,2]
[364551342,1749138649937,-158.24,0.00021095,2]
[364551343,1749138649946,-708.66,0.00021095,2]
[364551344,1749138649955,-351.44991544,0.00021095,2]
[364551345,1749138649965,-522.17,0.00021095,2]
[364551346,1749138649974,-440.0,0.00021095,2]
[364551347,1749138649984,-440.0,0.00021095,2]
[364551348,1749138649994,-861.35,0.00021095,2]
[364551349,1749138650003,-670.38,0.00021095,2]
[364551350,1749138650012,-2032.55,0.000211,2]
[364551351,1749138650022,-736.7216536,0.00021107,4]
[364551352,1749138650032,-736.7216536,0.00021279,5]
[364551353,1749138650042,-969.17,0.00021369,2]
[364551354,1749138650051,-613.16,0.00021369,2]
[364551355,1749138650060,-440.0,0.00021369,2]
[364551356,1749138650070,-924.01,0.00021369,2]
[364551357,1749138650079,-1379.01,0.00021369,2]
[364551358,1749138650088,-440.0,0.00021369,2]
[364551359,1749138650098,-440.0,0.00021369,2]
[364551360,1749138650107,-440.0,0.00021369,2]
[364551361,1749138650117,-440.0,0.00021369,2]
[364551362,1749138650126,-440.0,0.00021369,2]
[364551363,1749138650135,-21292.08,0.00021369,2]
[364551364,1749138650145,-440.0,0.00021369,2]
[364551365,1749138650155,-440.0,0.00021369,2]
[364551366,1749138650165,-708.66,0.00021369,2]
[364551367,1749138650174,-522.17,0.00021369,2]
[364551368,1749138650184,-232.39844404,0.00021369,2]
[364551369,1749138650193,-440.0,0.00021369,2]
[364551370,1749138650202,-861.35,0.00021369,2]
[364551371,1749138650212,-670.38,0.00021369,2]
[364551372,1749138650222,-152.34019882,0.00021407,2]
[364551373,1749138650231,-736.7216536,0.00021452,5]
[364551374,1749138650332,-207.4,0.00021578,2]
[364551375,1749138650341,-736.7216536,0.00021624,5]
[364551376,1749138650351,-151.0,0.00021642,2]
[364551377,1749138650362,-969.17,0.00021643,2]
[364551378,1749138650371,-613.16,0.00021643,2]
[364551379,1749138650381,-151.0,0.00021643,2]
[364551380,1749138650391,-440.0,0.00021643,2]
[364551381,1749138650400,-924.01,0.00021643,2]
[364551382,1749138650410,-1379.01,0.00021643,2]
[364551383,1749138650420,-151.0,0.00021643,2]
[364551384,1749138650429,-440.0,0.00021643,2]
[364551385,1749138650438,-151.0,0.00021643,2]
[364551386,1749138650448,-440.0,0.00021643,2]
[364551387,1749138650458,-151.0,0.00021643,2]
[364551388,1749138650468,-440.0,0.00021643,2]
[364551389,1749138650477,-440.0,0.00021643,2]
[364551390,1749138650486,-440.0,0.00021643,2]
[364551391,1749138650496,-21292.08,0.00021643,2]
[364551392,1749138650511,-440.0,0.00021643,2]
[364551393,1749138650522,-440.0,0.00021643,2]
[364551394,1749138650531,-708.66,0.00021643,2]
[364551395,1749138650540,-522.17,0.00021643,2]
[364551396,1749138650550,-451.35685803,0.00021643,2]
[364551397,1749138650560,-861.35,0.00021643,2]
[364551398,1749138650570,-670.38,0.00021643,2]
[364551399,1749138650580,-500.0,0.00021691,2]
[364551400,1749138650590,-736.7216536,0.00021797,6]
[364551401,1749138650599,-969.17,0.00021917,2]
[364551402,1749138650608,-613.16,0.00021917,2]
[364551403,1749138650618,-440.0,0.00021917,2]
[364551404,1749138650628,-924.01,0.00021917,2]
[364551405,1749138650637,-1379.01,0.00021917,2]
[364551406,1749138650646,-430.0,0.00021917,2]
[364551407,1749138650655,-440.0,0.00021917,2]
[364551408,1749138650664,-440.0,0.00021917,2]
[364551409,1749138650674,-440.0,0.00021917,2]
[364551410,1749138650683,-440.0,0.00021917,2]
[364551411,1749138650692,-151.0,0.00021917,2]
[364551412,1749138650701,-440.0,0.00021917,2]
[364551413,1749138650710,-500.0,0.00021917,2]
[364551414,1749138650720,-192.951775,0.00021917,2]
[364551415,1749138650729,-192.951775,0.00021917,2]
[364551416,1749138650738,-21292.08,0.00021917,2]
[364551417,1749138650748,-440.0,0.00021917,2]
[364551418,1749138650758,-440.0,0.00021917,2]
[364551419,1749138650768,-708.66,0.00021917,2]
[364551420,1749138650777,-522.17,0.00021917,2]
[364551421,1749138650786,-861.35,0.00021917,2]
[364551422,1749138650795,-670.38,0.00021917,2]
[364551423,1749138650805,-1303.97,0.00021943,2]
[364551424,1749138650814,-736.7216536,0.00021969,6]
[364551425,1749138650823,-2126.51,0.00022,2]
[364551426,1749138650832,-1144.91,0.00022,7]
[364551427,1749138650842,-24285.76,0.00022,2]
[364551428,1749138650851,-736.7216536,0.00022141,6]
[364551429,1749138650860,-8857.66297699,0.00022191,3]
[364551430,1749138650870,-969.17,0.00022191,2]
[364551431,1749138650880,-613.16,0.00022191,2]
[364551432,1749138650889,-440.0,0.00022191,2]
[364551433,1749138650898,-924.01,0.00022191,2]
[364551434,1749138650908,-1379.01,0.00022191,2]
[364551435,1749138650917,-440.0,0.00022191,2]
[364551436,1749138650927,-440.0,0.00022191,2]
[364551437,1749138650936,-306.06495317,0.00022191,2]
[364551438,1749138650945,-440.0,0.00022191,2]
[364551439,1749138650955,-440.0,0.00022191,2]
[364551440,1749138650963,-21292.08,0.00022191,2]
[364551441,1749138650973,-161.35,0.00022191,2]
[364551442,1749138650982,-462.85892041,0.00022191,2]
[364551443,1749138650992,-708.66,0.00022191,2]
[364551444,1749138651001,-522.17,0.00022191,2]
[364551445,1749138651010,-861.35,0.00022191,2]
[364551446,1749138651022,-670.38,0.00022191,2]
[364551447,1749138651031,-18109.11521024,0.000222,2]
[364551448,1749138651040,-397.745159,0.000222,7]
[364551449,1749138651049,-397.745159,0.000222,7]
[364551450,1749138651059,-151.0,0.000222,7]
[364551451,1749138651068,-151.0,0.000222,7]
[364551452,1749138651078,-362.904735,0.000222,7]
[364551453,1749138651087,-362.904735,0.000222,7]
[364551454,1749138651096,-36875.93327572,0.000222,69]
[364551455,1749138651106,-36875.93327568,0.000222,69]
[364551456,1749138651116,-36875.93327568,0.000222,69]
[364551457,1749138651125,-1000.0,0.00022239,2]
[364551458,1749138651135,-736.7216536,0.00022314,7]
[364551459,1749138651144,-969.17,0.00022465,2]
[364551460,1749138651154,-613.16,0.00022465,2]
[364551461,1749138651164,-440.0,0.00022465,2]
[364551462,1749138651174,-582.4110088,0.00022465,2]
[364551463,1749138651274,-341.5989912,0.00022465,2]
[364551464,1749138651284,-472.3540499,0.00022465,2]
[364551465,1749138651971,-440.0,0.00018356,2]
[364551466,1749138651982,-451.60878874,0.00018356,2]
[364551467,1749138651993,-308.52438394,0.00018356,2]
[364551468,1749138652004,-440.0,0.00018356,2]
[364551469,1749138652015,-440.0,0.00018356,2]
[364551470,1749138652026,-430.0,0.00018356,2]
[364551471,1749138652037,-430.0,0.00018356,2]
[364551472,1749138652049,-440.0,0.00018356,2]
[364551473,1749138652060,-440.0,0.00018356,2]
[364551474,1749138652071,-440.0,0.0001863,2]
[364551475,1749138652083,-470.0,0.0001863,2]
[364551476,1749138652094,-440.0,0.0001863,2]
[364551477,1749138652105,-440.0,0.0001863,2]
[364551478,1749138652116,-420.0,0.0001863,2]
[364551479,1749138652140,-440.0,0.00018904,2]
[364551480,1749138652158,-440.0,0.00018904,2]
[364551481,1749138652173,-440.0,0.00018904,2]
[364551482,1749138652188,-509.19912043,0.00019178,2]
[364551483,1749138652202,-440.0,0.00019178,2]